bitfinex-derivatives/quotes_ETHF0:USTF0_20251005
["timestamp","ask_amount","ask_price","bid_price","bid_amount"]
[1759648497064,1.24209401,4580.7,4580.6,0.3194]
[1759648497764,1.24209401,4580.7,4580.6,0.5318]
[1759648500563,0.0834,4580.5,4580.4,0.00164054]
[1759648500863,1.31959401,4580.5,4580.4,0.00164054]
[1759648501859,3.2078,4581.9,4580.5,0.1241]
[1759648502068,3.9723,4582.4,4582.3,0.92454]
[1759648502655,0.7645,4582.4,4582.3,0.92454]
[1759648502867,0.7645,4582.4,4582.3,0.5318]
[1759648504161,0.7645,4582.4,4582.3,0.92454]
[1759648504367,3.2078,4582.9,4582.8,0.7571]
[1759648504563,3.4231,4582.9,4582.8,1.74585289]
[1759648505162,3.6345,4582.9,4582.8,1.74585289]
[1759648505470,3.9723,4582.9,4582.8,1.74585289]
[1759648506662,3.6345,4582.9,4582.8,1.74585289]
[1759648506868,0.00196771,4583.0,4582.9,1.14978]
[1759648507069,0.21726771,4583.0,4582.9,0.7571]
[1759648507766,0.00196771,4583.0,4582.9,0.7571]
[1759648509272,0.21726771,4583.0,4582.9,1.14978]
[1759648509569,0.00196771,4583.0,4582.9,2.13853289]
[1759648509765,1.96369772,4584.9,4582.9,2.13853289]
[1759648509766,3.4231,4584.0,4583.9,0.2124]
[1759648509966,3.9723,4584.0,4583.9,1.52055289]
[1759648510268,0.98875289,4585.1,4583.9,1.52055289]
[1759648510269,1.96369772,4585.9,4585.8,0.4377]
[1759648510470,3.86557927,4586.8,4585.8,4.63425289]
[1759648510670,0.219,4586.9,4586.3,0.98875289]
[1759648510863,0.98875289,4586.6,4586.3,0.00211918]
[1759648511067,0.219,4586.5,4586.3,1.918e-05]
[1759648511372,0.98875289,4586.4,4586.3,1.918e-05]
[1759648511575,5.98875289,4586.4,4586.3,1.918e-05]
[1759648512072,6.20775289,4586.4,4586.3,1.918e-05]
[1759648512267,6.20775289,4586.4,4586.3,0.31941918]
[1759648512268,0.219,4586.4,4586.3,0.31941918]
[1759648512668,0.219,4586.4,4586.3,1.918e-05]
[1759648512973,3.21044945,4586.9,4586.3,1.918e-05]
[1759648513173,0.219,4586.8,4586.3,1.918e-05]
[1759648513376,3.21044945,4586.9,4586.3,1.918e-05]
[1759648513977,0.219,4586.8,4586.3,1.918e-05]
[1759648515178,0.219,4586.7,4586.3,0.21241918]
[1759648515375,0.219,4586.7,4586.3,1.918e-05]
[1759648515576,0.219,4586.6,4586.3,1.918e-05]
[1759648515778,0.219,4586.6,4586.5,0.4435]
[1759648515977,3.21044945,4586.9,4586.5,0.4435]
[1759648516180,0.219,4586.8,4586.5,0.1241]
[1759648516381,0.219,4586.8,4586.6,0.3194]
[1759648516771,3.3286,4586.1,4583.9,0.17165126]
[1759648517080,8.79649755,4586.7,4583.0,0.1241]
[1759648517081,0.712,4583.7,4583.0,0.1241]
[1759648517282,0.712,4583.7,4583.5,0.2124]
[1759648517283,0.6516,4583.6,4583.5,0.2124]
[1759648517576,0.9358,4583.6,4583.5,0.5431]
[1759648517776,0.93759656,4583.6,4583.5,0.33336147]
[1759648519272,0.4326,4582.7,4582.6,0.7528]
[1759648519471,3.4185,4583.4,4583.3,0.5432]
[1759648519679,3.2078,4583.4,4583.3,0.7528]
[1759648519874,3.4185,4583.4,4583.3,0.7528]
[1759648520074,3.6404,4583.4,4583.3,0.7528]
[1759648520277,3.8594,4583.4,4583.3,0.75449957]
[1759648520773,3.6404,4583.4,4583.3,0.75449957]
[1759648520978,0.00179656,4583.6,4583.5,0.5511]
[1759648521181,0.22079656,4583.6,4583.5,0.8818]
[1759648521374,0.00179656,4583.6,4583.5,0.8818]
[1759648524381,0.00179656,4583.6,4583.5,1.27443]
[1759648524578,0.00179656,4583.6,4583.5,6.27443]
[1759648525580,0.00179656,4583.6,4583.5,5.8818]
[1759648527680,0.00179656,4583.6,4583.5,0.8818]
[1759648528478,0.00179656,4583.6,4583.5,5.8818]
[1759648528679,3.2078,4584.5,4584.4,0.7528]
[1759648528881,0.4326,4584.2,4584.1,0.3307]
[1759648529088,0.7268,4584.2,4583.6,0.3307]
[1759648529279,0.2107,4583.7,4583.6,0.7528]
[1759648529580,0.2942,4584.2,4583.6,0.7528]
[1759648529581,0.01,4584.2,4584.1,0.3307]
[1759648529786,0.01268405,4584.2,4584.1,0.7528]
[1759648530078,0.01268405,4584.2,4584.1,5.7528]
[1759648533889,3.2078,4585.0,4584.9,1.14691]
[1759648534082,3.2078,4585.0,4584.9,0.7544]
[1759648534481,3.4173,4585.0,4584.9,1.14692]
[1759648534680,0.2095,4585.0,4584.9,1.14692]
[1759648534988,0.2095,4585.0,4584.9,0.3244]
[1759648534989,0.72746428,4585.0,4584.9,0.3244]
[1759648535189,0.72746428,4585.0,4584.9,0.5389]
[1759648535390,0.43016428,4585.0,4584.9,0.7544]
[1759648536985,0.44016428,4585.0,4584.9,0.7544]
[1759648537182,0.01156428,4585.0,4584.9,0.7544]
[1759648540392,0.02156428,4585.0,4584.9,0.7544]
[1759648540892,0.23106428,4585.0,4584.9,0.7544]
[1759648541586,0.02156428,4585.0,4584.9,0.7544]
[1759648544392,0.02156428,4585.0,4583.6,5.62400541]
[1759648544393,6.03416428,4585.0,4584.2,0.3244]
[1759648544694,0.4286,4584.4,4584.3,0.43]
[1759648545089,0.7259,4584.1,4583.6,3.2078]
[1759648545293,0.7259,4584.1,4584.0,0.2145]
[1759648545488,0.7259,4584.1,4584.0,0.5389]
[1759648545695,8.2912067,4584.1,4582.5,0.1248]
[1759648545889,3.2078,4582.6,4582.5,0.5548]
[1759648546089,0.219,4583.0,4582.5,0.5548]
[1759648546299,3.2078,4583.1,4583.0,0.5548]
[1759648546588,3.90903832,4583.1,4583.0,0.5548]
[1759648546791,3.90903832,4583.1,4583.0,0.34171309]
[1759648547794,3.90903832,4583.1,4583.0,0.65471309]
[1759648549494,8.90903832,4583.1,4583.0,0.44021309]
[1759648549692,8.69003832,4583.1,4583.0,0.44021309]
[1759648549901,8.90903832,4583.1,4583.0,0.44021309]
[1759648550400,8.91903832,4583.1,4583.0,0.44021309]
[1759648551500,8.91903832,4583.1,4583.0,0.12721309]
[1759648552696,11.74724612,4583.1,4582.1,0.313]
[1759648552894,3.2078,4582.2,4582.1,0.313]
[1759648553202,3.87903832,4582.2,4582.1,0.313]
[1759648553700,3.87903832,4582.2,4582.1,0.31581335]
[1759648553897,3.92903832,4582.2,4582.1,0.31581335]
[1759648554500,3.9283287,4582.2,4582.1,0.31581335]
[1759648555394,3.4768,4582.2,4582.1,0.31581335]
[1759648555598,8.4768,4582.2,4582.1,0.00281335]
[1759648555900,8.92820834,4582.2,4582.1,0.00281335]
[1759648556494,8.92820834,4582.2,4582.1,0.31581335]
[1759648557501,8.4768,4582.2,4582.1,0.31581335]
[1759648560402,3.2578,4582.2,4582.1,0.52211335]
[1759648560603,3.4768,4582.2,4582.1,0.73411335]
[1759648561596,3.2578,4582.2,4582.1,1.12687335]
[1759648561801,3.4768,4582.2,4582.1,1.12687335]
[1759648561997,3.2578,4582.2,4582.1,1.12687335]
[1759648562304,0.05,4582.2,4582.1,1.12687335]
[1759648562498,0.269,4582.2,4582.1,1.12687335]
[1759648562693,0.05,4582.2,4582.1,0.73411335]
[1759648563098,0.269,4582.2,4582.1,0.73411335]
[1759648563300,0.05,4582.2,4582.1,0.73411335]
[1759648563500,0.269,4582.2,4582.1,0.73411335]
[1759648563705,0.05,4582.2,4582.1,0.73411335]
[1759648564407,0.269,4582.2,4582.1,0.73411335]
[1759648564603,0.05,4582.2,4582.1,5.73411335]
[1759648566407,0.05,4582.2,4582.1,0.73411335]
[1759648568303,0.05,4582.2,4582.1,0.52781335]
[1759648568509,0.05,4582.2,4582.1,0.73411335]
[1759648570299,0.05,4582.2,4582.1,0.52781335]
[1759648570506,3.2578,4582.2,4582.1,0.73411335]
[1759648571309,3.2578,4582.2,4582.1,0.52781335]
[1759648571609,3.71644358,4582.2,4582.1,0.52211335]
[1759648571912,3.2578,4582.2,4582.1,0.52211335]
[1759648572207,3.2578,4582.2,4582.1,0.73411335]
[1759648572412,3.71682387,4582.2,4582.1,0.73411335]
[1759648572709,3.93582387,4582.2,4582.1,0.73411335]
[1759648572911,3.71682387,4582.2,4582.1,0.73411335]
[1759648573206,3.93582387,4582.2,4582.1,0.73411335]
[1759648573908,3.71682387,4582.2,4582.1,0.73411335]
[1759648574109,3.93582387,4582.2,4582.1,0.73411335]
[1759648575211,3.93582387,4582.2,4582.1,0.52211335]
[1759648575603,3.71682387,4582.2,4582.1,0.73411335]
[1759648576110,3.93582387,4582.2,4582.1,0.73411335]
[1759648576510,3.71682387,4582.2,4582.1,0.73411335]
[1759648576812,3.93582387,4582.2,4582.1,0.73411335]
[1759648577113,3.71682387,4582.2,4582.1,0.73411335]
[1759648577311,3.93582387,4582.2,4582.1,0.73411335]
[1759648577909,3.71682387,4582.2,4582.1,0.73411335]
[1759648578112,3.71682387,4582.2,4582.1,1.12687335]
[1759648578315,3.93582387,4582.2,4582.1,1.12687335]
[1759648578714,3.71682387,4582.2,4582.1,1.12687335]
[1759648578917,3.93582387,4582.2,4582.1,0.73411335]
[1759648579115,0.72802387,4582.2,4582.1,0.73411335]
[1759648579505,0.50902387,4582.2,4582.1,0.73411335]
[1759648579712,0.72802387,4582.2,4582.1,0.73411335]
[1759648579911,0.50902387,4582.2,4582.1,0.73411335]
[1759648580118,0.72802387,4582.2,4582.1,0.73411335]
[1759648580327,0.50902387,4582.2,4582.1,0.73411335]
[1759648581011,0.72802387,4582.2,4582.1,0.73411335]
[1759648581714,0.50902387,4582.2,4582.1,0.73411335]
[1759648600227,0.50902387,4582.2,4582.1,0.52211335]
[1759648600432,0.50902387,4582.2,4582.1,0.31581335]
[1759648600632,3.71682387,4582.2,4582.1,0.31581335]
[1759648601234,3.71682387,4582.2,4582.1,0.75011335]
[1759648603044,0.50902387,4582.2,4582.1,0.75011335]
[1759648604343,0.50902387,4582.2,4582.1,1.73823391]
[1759648612836,0.50902387,4582.2,4582.1,0.00281335]
[1759648612837,4.70494443,4582.2,4582.1,0.00281335]
[1759648613039,8.71682387,4582.2,4582.1,0.33361335]
[1759648613440,3.71682387,4582.2,4582.1,1.76733391]
[1759648613639,0.50902387,4582.2,4582.1,0.77921335]
[1759648614240,0.50902387,4582.2,4582.1,0.33361335]
[1759648614241,3.71682387,4582.2,4582.1,0.33361335]
[1759648614544,3.93582387,4582.2,4582.1,0.33361335]
[1759648614935,8.93582387,4582.2,4582.1,0.33361335]
[1759648616645,9.92394443,4582.2,4582.1,0.33361335]
[1759648617933,9.70494443,4582.2,4582.1,0.33361335]
[1759648618138,9.92394443,4582.2,4582.1,0.33361335]
[1759648621141,4.70494443,4582.2,4582.1,0.55531335]
[1759648621448,0.50902387,4582.2,4582.1,1.17197335]
[1759648621640,4.19592056,4583.3,4583.0,0.3475]
[1759648621944,0.61951132,4583.2,4583.1,0.3308]
[1759648622140,0.45851132,4583.2,4583.1,0.3308]
[1759648622447,0.45851132,4583.2,4583.1,0.5525]
[1759648622640,0.67751132,4583.2,4583.1,0.5525]
[1759648622840,0.67751132,4583.2,4583.1,0.3308]
[1759648624342,0.45851132,4583.2,4583.1,0.7764]
[1759648626047,0.45851132,4583.2,4583.1,3.9842]
[1759648627246,3.2078,4584.3,4584.2,0.2217]
[1759648627549,3.89730856,4584.3,4584.2,0.7764]
[1759648627752,3.67830856,4584.3,4584.2,0.7764]
[1759648627952,3.89730856,4584.3,4584.2,0.7764]
[1759648628549,3.67830856,4584.3,4584.2,0.7764]
[1759648628854,0.3141,4585.5,4585.4,0.39248]
[1759648629155,0.5194,4585.9,4585.8,0.4456]
[1759648629342,0.5194,4585.9,4585.8,1.43372056]
[1759648629547,0.727,4585.9,4585.8,1.43372056]
[1759648629946,0.31578292,4585.9,4585.8,1.70869582]
[1759648630253,0.52108292,4585.9,4585.8,1.70869582]
[1759648630748,0.72868292,4585.9,4585.8,0.00157526]
[1759648631051,5.72868292,4585.9,4585.8,0.00157526]
[1759648631442,0.727,4584.4,4584.3,0.4456]
[1759648632249,0.727,4584.4,4584.3,3.6534]
[1759648632447,0.727,4584.4,4584.3,3.65551891]
[1759648633354,0.3141,4584.4,4584.3,3.92891891]
[1759648634757,0.5194,4584.4,4584.3,3.92891891]
[1759648634953,0.727,4584.4,4584.3,0.00211891]
[1759648638060,5.727,4584.4,4584.3,0.00211891]
[1759648638252,5.4129,4584.4,4583.0,0.39268]
[1759648638457,0.4587,4583.0,4582.9,4.19592056]
[1759648638759,0.8849,4583.0,4582.9,4.42302056]
[1759648639157,0.8849,4583.0,4582.9,3.4349]
[1759648639458,0.8849,4583.0,4582.9,3.43691953]
[1759648640355,0.8849,4583.0,4582.9,4.90734009]
[1759648640356,0.3343,4583.0,4582.9,4.90734009]
[1759648641175,0.3343,4583.0,4582.9,5.30003009]
[1759648642553,0.3343,4583.4,4582.9,5.30003009]
[1759648642862,0.1244,4583.5,4582.9,5.02653009]
[1759648643260,0.3343,4583.4,4582.9,5.02653009]
[1759648643463,0.1244,4583.5,4582.9,5.30003009]
[1759648643858,0.2155,4583.2,4583.1,0.39267]
[1759648644052,0.4262,4583.2,4582.9,4.59063009]
[1759648644356,0.5506,4583.0,4582.9,4.19794009]
[1759648644559,0.8849,4583.0,4582.9,4.19794009]
[1759648644862,0.8849,4583.0,4582.9,4.81773009]
[1759648645263,0.8849,4583.0,4582.9,5.02653009]
[1759648646456,0.8849,4583.0,4582.9,5.30003009]
[1759648646757,0.6742,4583.0,4582.9,5.30003009]
[1759648647765,0.5498,4583.0,4582.9,5.30003009]
[1759648647962,0.1244,4583.5,4582.9,5.30003009]
[1759648648260,0.5498,4583.4,4583.3,0.4359]
[1759648649257,0.7605,4583.4,4583.3,0.4359]
[1759648649661,0.7605,4583.4,4583.3,0.2271]
[1759648651874,0.7605,4583.4,4583.3,0.61976]
[1759648652169,0.7605,4583.4,4583.3,0.2271]
[1759648652362,0.3365,4583.3,4583.2,0.98812056]
[1759648652562,0.8877,4583.0,4582.9,3.42701953]
[1759648652964,0.8877,4583.0,4582.9,3.63581953]
[1759648653464,0.8877,4583.0,4582.9,3.90941953]
[1759648654572,0.5531,4583.4,4583.3,1.09225]
[1759648654873,0.5531,4583.4,4583.3,2.08037056]
[1759648655672,3.4244,4583.9,4583.8,0.426]
[1759648656072,3.6325,4583.9,4583.8,0.426]
[1759648656270,3.6325,4583.9,4583.8,0.81861]
[1759648656271,3.969,4583.9,4583.8,0.81861]
[1759648657068,0.3365,4583.9,4583.8,1.09221]
[1759648657269,3.5443,4584.4,4584.3,0.6996]
[1759648657575,3.969,4584.4,4584.3,0.426]
[1759648658973,3.969,4584.4,4584.3,1.41412056]
[1759648659972,0.5531,4584.4,4584.3,1.68772056]
[1759648661278,0.99613194,4584.4,4584.3,1.68772056]
[1759648662079,0.99613194,4584.4,4584.3,1.41412056]
[1759648662581,1.20423194,4584.4,4584.3,1.41412056]
[1759648664077,1.20423194,4584.4,4584.3,1.68772056]
[1759648664379,1.20423194,4584.4,4584.3,0.6996]
[1759648665281,1.20423194,4584.4,4584.3,0.426]
[1759648667677,0.99613194,4584.4,4584.3,0.7]
[1759648668379,0.2173,4584.9,4584.8,0.39253]
[1759648668685,1.19833105,4584.9,4584.8,0.61643]
[1759648669877,1.19833105,4584.9,4584.8,0.2239]
[1759648670272,0.7465,4584.9,4584.8,0.2239]
[1759648670484,1.21076882,4584.9,4584.8,0.2239]
[1759648670682,0.63646882,4584.9,4584.8,0.2239]
[1759648670877,0.63646882,4584.9,4584.8,0.5565]
[1759648671077,0.63646882,4584.9,4584.8,0.7695]
[1759648672084,0.21076882,4584.9,4584.8,0.7695]
[1759648672284,0.42738292,4585.9,4585.8,0.2239]
[1759648672587,0.3208,4585.8,4585.6,0.3326]
[1759648672783,0.7465,4585.7,4585.6,0.3326]
[1759648672980,0.7465,4585.7,4585.6,0.5565]
[1759648674587,0.3208,4585.6,4585.0,3.5404]
[1759648674778,0.7465,4585.1,4585.0,3.2078]
[1759648675884,0.7465,4585.1,4585.0,3.7643]
[1759648677474,0.7465,4585.1,4584.5,3.94735]
[1759648677677,0.4257,4584.6,4584.5,4.17125]
[1759648677878,0.7465,4584.6,4584.5,4.05795]
[1759648678083,0.7465,4584.6,4584.5,0.3326]
[1759648679683,0.7465,4584.6,4584.0,0.2962]
[1759648679881,0.4257,4584.6,4584.0,0.0742]
[1759648680187,0.4257,4584.2,4584.1,0.5565]
[1759648680380,0.4257,4584.2,4584.1,0.7695]
[1759648680886,0.2173,4584.2,4584.1,0.7695]
[1759648681080,0.9685,4584.7,4584.6,0.5565]
[1759648681481,0.7465,4584.7,4584.6,0.3326]
[1759648681689,0.9685,4584.7,4584.6,0.3326]
[1759648682080,0.7465,4584.7,4584.6,0.5565]
[1759648682686,0.9685,4584.7,4584.6,0.5565]
[1759648682883,0.6477,4584.7,4584.6,0.7695]
[1759648683084,0.4257,4584.7,4584.6,0.7695]
[1759648683483,0.7465,4584.7,4584.6,0.7695]
[1759648684089,0.9685,4584.7,4584.6,0.7695]
[1759648684278,1.43119353,4584.7,4584.6,0.7695]
[1759648684678,6.43119353,4584.7,4584.1,0.3326]
[1759648684993,0.7465,4584.1,4584.0,0.6815]
[1759648685190,0.88839353,4584.1,4584.0,0.8945]
[1759648685582,1.20919353,4584.1,4584.0,0.6815]
[1759648685784,1.20919353,4584.1,4584.0,0.5565]
[1759648686492,0.4257,4583.7,4583.6,0.7695]
[1759648686786,0.7465,4583.7,4583.6,0.5565]
[1759648686987,0.7465,4583.7,4583.1,0.3326]
[1759648686988,1.43119353,4583.7,4583.1,0.3326]
[1759648687188,0.7465,4583.2,4583.1,0.5565]
[1759648687389,1.20919353,4583.2,4583.1,0.5565]
[1759648687589,0.88839353,4583.2,4583.1,0.7695]
[1759648688191,1.20919353,4583.2,4583.1,0.7695]
[1759648688391,0.88839353,4583.2,4583.1,0.7695]
[1759648688592,1.20919353,4583.2,4583.1,0.7695]
[1759648689592,1.20919353,4583.2,4583.1,0.3326]
[1759648689796,0.7465,4583.0,4582.9,3.54241953]
[1759648689998,1.20919353,4583.0,4582.9,3.54241953]
[1759648690505,1.20888094,4583.0,4582.9,3.76631953]
[1759648691701,0.88808094,4583.0,4582.9,3.97931953]
[1759648696308,0.4257,4583.0,4582.9,3.97931953]
[1759648697012,0.2173,4583.0,4582.9,3.97931953]
[1759648697607,1.22055977,4583.0,4582.9,0.55851953]
[1759648697909,1.22055977,4583.0,4582.9,0.33461953]
[1759648698102,1.22055977,4583.0,4582.9,0.54631953]
[1759648698304,0.3224,4582.9,4581.9,0.3205]
[1759648698506,0.3224,4581.9,4581.0,0.125]
[1759648698706,3.9544,4581.6,4581.5,0.2117]
[1759648698909,3.9544,4581.6,4580.9,3.2078]
[1759648698910,0.7466,4581.0,4580.9,3.6432]
[1759648699307,0.74919399,4581.0,4580.9,3.64596114]
[1759648700416,0.20829399,4581.0,4580.9,3.96646114]
[1759648702612,0.74919399,4581.0,4580.9,3.96646114]
[1759648702914,0.42679399,4581.0,4580.9,3.96646114]
[1759648703807,0.20829399,4581.0,4580.9,3.96646114]
[1759648704822,0.00259399,4581.0,4580.9,3.96646114]
[1759648705620,0.00259399,4581.0,4580.9,0.75866114]
[1759648708625,3.9544,4582.1,4582.0,0.5322]
[1759648708813,4.64796964,4582.1,4582.0,0.5322]
[1759648709418,4.64962365,4582.1,4582.0,0.5322]
[1759648710626,0.7466,4581.6,4581.5,0.5322]
[1759648710924,1.44016964,4581.6,4581.5,0.7559]
[1759648711319,1.44016964,4581.6,4581.5,0.8793]
[1759648712819,1.21816964,4581.6,4581.5,0.8793]
[1759648713020,0.79,4581.4,4581.3,0.2273]
[1759648713225,0.2255,4581.4,4581.3,0.77]
[1759648713414,0.221,4581.5,4581.3,0.77]
[1759648713619,0.4465,4581.5,4581.4,0.77]
[1759648713821,0.91845372,4581.5,4581.4,0.77]
[1759648714719,0.69745372,4581.5,4581.4,0.77]
[1759648714916,0.91945372,4581.5,4581.4,0.77]
[1759648715524,0.91845372,4581.5,4581.4,0.77]
[1759648716123,0.69745372,4581.5,4581.4,0.77]
[1759648716622,0.91845372,4581.5,4581.4,0.77]
[1759648717127,3.20945401,4582.1,4581.4,0.77]
[1759648717128,0.00165401,4582.1,4582.0,1.28617]
[1759648717426,0.79,4582.1,4582.0,0.2115]
[1759648718026,0.452,4581.8,4581.7,0.77]
[1759648718328,0.79216992,4581.8,4581.7,0.77]
[1759648718727,0.79216992,4581.8,4581.0,3.3359]
[1759648718728,0.79216992,4581.8,4581.3,0.3312]
[1759648719230,0.79216992,4581.8,4581.7,0.2115]
[1759648720024,0.79216992,4581.8,4581.0,3.3359]
[1759648720229,0.2255,4581.2,4581.1,0.77]
[1759648720536,0.5635,4581.2,4581.1,0.77]
[1759648722730,0.00216992,4581.8,4581.7,0.4388]
[1759648723032,0.79216992,4581.8,4581.7,3.9778]
[1759648723236,0.79216992,4581.8,4581.7,3.2078]
[1759648723533,0.1286,4581.5,4581.1,3.2078]
[1759648723725,0.338,4580.9,4580.0,0.3312]
[1759648723922,0.3551,4581.0,4580.0,0.77]
[1759648723923,0.5635,4580.1,4580.0,0.77]
[1759648724525,0.338,4580.4,4580.0,0.8934]
[1759648724833,0.79,4580.9,4580.8,0.77]
[1759648725028,0.338,4580.7,4580.3,0.3312]
[1759648725226,0.79,4580.4,4580.3,0.77]
[1759648725832,0.5635,4581.1,4581.0,0.4388]
[1759648726027,0.5635,4581.1,4581.0,0.77]
[1759648726338,0.79,4581.1,4581.0,0.77]
[1759648727527,0.5635,4581.1,4581.0,0.77]
[1759648727728,0.2255,4581.1,4581.0,0.77]
[1759648728329,0.2255,4581.1,4581.0,0.9044]
[1759648728529,0.5431,4581.4,4581.3,0.4285]
[1759648728729,0.5431,4581.4,4581.3,0.746]
[1759648729132,0.99488331,4581.4,4581.3,0.746]
[1759648729434,1.21258331,4581.4,4581.3,0.746]
[1759648731229,1.21258331,4581.4,4581.3,0.4285]
[1759648731430,1.21258331,4581.4,4581.3,0.2068]
[1759648733731,0.7608,4580.9,4580.8,3.9538]
[1759648733942,1.21258331,4580.9,4580.8,3.6363]
[1759648734235,1.21258331,4580.9,4580.8,3.9538]
[1759648736841,0.45178331,4580.9,4580.8,3.9538]
[1759648737030,0.45178331,4581.2,4580.8,3.6363]
[1759648737236,0.45178331,4581.2,4581.1,0.746]
[1759648737734,0.88008331,4581.2,4580.8,3.2078]
[1759648737946,0.7608,4580.4,4580.3,0.746]
[1759648738140,1.21258331,4580.4,4580.3,0.746]
[1759648739239,0.45178331,4580.4,4580.3,0.746]
[1759648739637,0.45178331,4580.4,4580.3,3.9538]
[1759648740135,1.21258331,4580.4,4580.3,0.746]
[1759648740340,0.45178331,4580.4,4580.3,0.746]
[1759648740747,0.66238331,4580.4,4580.3,0.746]
[1759648740932,0.65803857,4580.4,4580.3,0.746]
[1759648741132,0.99053857,4580.4,4580.3,0.746]
[1759648742643,1.20823857,4580.4,4580.3,0.746]
[1759648742841,1.20823857,4580.4,4580.0,0.31977269]
[1759648743044,0.4671,4580.0,4579.2,0.3175]
[1759648743238,0.7608,4579.3,4579.2,0.2068]
[1759648743438,1.20823857,4579.3,4579.2,0.2068]
[1759648743839,1.20823857,4579.3,4578.7,0.3175]
[1759648744038,0.7608,4578.8,4578.7,0.747636]
[1759648744240,1.20770036,4578.8,4578.7,0.747636]
[1759648744742,0.65750036,4578.8,4578.7,0.747636]
[1759648744938,0.99000036,4578.8,4578.7,0.747636]
[1759648746045,0.65750036,4578.8,4578.7,0.747636]
[1759648746441,1.20770036,4578.8,4578.7,0.430136]
[1759648746935,1.20770036,4578.8,4578.7,0.208436]
[1759648747350,1.20770036,4578.8,4578.7,0.001636]
[1759648752956,1.42870036,4578.8,4578.7,0.001636]
[1759648753546,1.42870036,4578.8,4577.4,0.56553893]
[1759648753547,0.1346,4577.5,4576.8,3.2078]
[1759648753744,0.1346,4577.5,4575.9,1.16431565]
[1759648753745,0.1346,4576.5,4576.2,3.2078]
[1759648753945,0.7608,4576.3,4576.2,3.2078]
[1759648754145,1.20770036,4576.3,4576.2,3.2078]
[1759648754339,1.20770036,4576.3,4576.2,3.6363]
[1759648754539,1.21041279,4576.3,4576.2,3.95563836]
[1759648754949,0.44961279,4576.3,4576.2,5.74783836]
[1759648755150,0.1346,4579.0,4577.2,0.4285]
[1759648755151,3.9719,4577.3,4577.2,0.4285]
[1759648755452,4.41330276,4577.3,4577.2,0.746]
[1759648755752,4.41330276,4577.3,4577.2,0.4285]
[1759648756145,3.97080177,4577.3,4577.2,0.4285]
[1759648756541,4.19180177,4577.3,4577.2,0.4285]
[1759648756744,4.19180177,4577.3,4577.2,0.2068]
[1759648756945,4.19180177,4577.3,4576.2,0.00183836]
[1759648756946,9.63632776,4577.3,4576.3,0.3175]
[1759648757146,0.7525,4576.4,4576.3,0.5243]
[1759648757451,0.7525,4576.4,4576.3,0.2068]
[1759648758046,0.7525,4576.4,4576.2,0.00183836]
[1759648758847,0.3242,4576.3,4576.2,0.00183836]
[1759648759156,1.19917333,4576.3,4576.2,0.00183836]
[1759648759447,0.7549,4575.2,4574.7,0.3111]
[1759648759644,0.3242,4574.9,4574.1,0.3111]
[1759648760252,0.7549,4574.9,4574.8,0.743]
[1759648760457,0.7549,4574.9,4574.8,0.74467063]
[1759648760952,0.7549,4574.9,4574.8,0.22627063]
[1759648761349,0.7549,4574.9,4574.8,0.43357063]
[1759648761549,3.2078,4575.0,4574.9,0.3111]
[1759648761745,0.2149,4575.0,4574.9,0.743]
[1759648761952,0.5391,4575.0,4574.9,0.743]
[1759648762352,0.8904,4575.0,4574.9,0.2246]
[1759648762553,0.5452,4575.4,4574.9,0.4319]
[1759648762749,0.1355,4575.0,4574.8,0.00167063]
[1759648762944,0.7549,4574.9,4574.8,0.00167063]
[1759648763654,0.3242,4575.4,4574.9,0.3111]
[1759648763863,0.5391,4575.4,4575.3,0.743]
[1759648764157,0.7549,4575.4,4575.3,0.4319]
[1759648764352,0.7549,4575.4,4575.3,0.743]
[1759648767646,0.3242,4575.4,4575.3,0.743]
[1759648767861,0.3242,4575.9,4575.4,0.3111]
[1759648768157,0.2149,4575.5,4575.4,0.743]
[1759648768750,0.5452,4575.9,4575.4,0.743]
[1759648768952,0.3242,4575.9,4575.5,0.3111]
[1759648769152,0.7549,4575.9,4575.8,0.4319]
[1759648769455,0.9759,4575.9,4575.8,0.743]
[1759648769656,0.7549,4575.9,4575.8,0.743]
[1759648769859,0.9759,4575.9,4575.8,0.4319]
[1759648770052,0.7549,4575.9,4575.8,0.4319]
[1759648770552,3.2078,4576.6,4576.3,0.4319]
[1759648770753,0.44428145,4576.5,4576.4,0.743]
[1759648770957,3.2078,4577.2,4577.1,0.4319]
[1759648771150,3.2078,4577.2,4577.1,0.7423]
[1759648771455,0.00220177,4577.3,4577.2,0.7282]
[1759648771847,0.1355,4578.5,4578.0,0.2058]
[1759648771848,0.6548,4578.1,4578.0,0.2058]
[1759648772046,0.1273,4578.0,4577.3,0.3104]
[1759648772252,0.5611,4578.0,4577.9,0.2058]
[1759648772551,0.8948,4578.0,4577.9,0.2058]
[1759648772751,0.8973213,4578.0,4577.9,0.2058]
[1759648775162,0.3337,4576.8,4576.2,3.5182]
[1759648775349,0.461,4577.5,4577.0,0.7282]
[1759648775555,3.2078,4577.7,4577.1,0.3104]
[1759648775755,0.0025213,4578.0,4577.6,0.3104]
[1759648775958,0.0025213,4578.0,4577.5,3.54017556]
[1759648776159,0.3362213,4578.0,4577.6,0.3104]
[1759648776360,0.3362213,4578.0,4577.5,3.54017556]
[1759648777052,0.0025213,4578.0,4577.9,0.70352]
[1759648777256,0.0025213,4578.0,4577.9,0.92452]
[1759648777464,3.2078,4578.9,4578.6,0.3104]
[1759648777761,3.2078,4578.9,4578.5,0.52236]
[1759648778063,3.2078,4578.9,4578.8,0.3104]
[1759648778455,3.20946263,4578.9,4578.8,0.31193696]
[1759648780067,0.00166263,4578.9,4578.8,5.31193696]
[1759648781067,0.00166263,4578.9,4578.8,8.51973696]
[1759648781965,0.00166263,4578.9,4578.8,8.74073696]
[1759648782363,0.00166263,4578.9,4578.8,3.74073696]
[1759648782771,0.00166263,4578.9,4578.8,4.15853696]
[1759648783663,0.76916263,4578.9,4578.8,3.41513696]
[1759648783865,0.76916263,4578.9,4578.8,3.93753696]
[1759648784661,0.00166263,4578.9,4578.8,3.93753696]
[1759648785861,0.00166263,4578.9,4578.8,7.34841252]